Cogmind - Beta 11.1 @@@ ROGUE MODE // 2022.07.14 @ 11:59:30 Player: Smie Result: Destroyed by D-53 Grenadier with Mini Grenade Launcher Performance ------------- Evolutions (0) 0 Regions Visited (4) 800 Robots Destroyed (23) 115 Value Destroyed (340) 340 Prototype IDs (24) 480 Alien Tech Used (0) 0 Bonus (350) 350 TOTAL SCORE: 2085 Bonus ------- Follower Combat Kills 50 Aligned with FarCom 300 Cogmind --------- Core Integrity 0/250 Matter 300/300 Energy 125/125 System Corruption 0% Temperature Cool (0) Movement Core (500) Ox9 Location -9/Mines Parts ------- > --- POWER (1) -------- Light Ion Engine > --- PROPULSION (2) --- (None) > --- UTILITY (2) ------ Large Storage Unit > --- WEAPON (2) ------- Improved Medium Laser Improved Medium Laser > --- INVENTORY (15) --- Light Ion Engine Aluminum Leg Aluminum Leg Aluminum Leg Aluminum Leg Aluminum Leg High-capacity Storage Unit High-capacity Battery (250) High-capacity Matter Pod (200) Medium Laser Improved Medium Laser YOLO Cannon Grenade Launcher Makeshift Spear Peak State ------------ > --- POWER ------------ Light Ion Engine > --- PROPULSION ------- Aluminum Leg Aluminum Leg > --- UTILITY ---------- Heat Sink Large Storage Unit > --- WEAPON ----------- Improved Medium Laser Improved Medium Laser > --- INVENTORY -------- Light Ion Engine Aluminum Leg Aluminum Leg Aluminum Leg Aluminum Leg Aluminum Leg High-capacity Storage Unit High-capacity Battery High-capacity Matter Pod Medium Laser Improved Medium Laser YOLO Cannon Grenade Launcher Makeshift Spear [Rating: 14] Favorites ----------- Power Light Ion Engine Engine Light Ion Engine Propulsion Aluminum Leg Leg Aluminum Leg Wheel Wheel Hover Unit Backup Propulsion I Utility Heat Sink Device Heat Sink Storage Large Storage Unit Weapon Improved Medium Laser Energy Gun Improved Medium Laser Ballistic Gun Light Assault Rifle Launcher Grenade Launcher Build | -11 -10 -10 -10 -9 ------- Run | Scr Mat Min Exi Min Slots Evolved . | . . . . . Power . | . . . . . Propulsion . | . . . . . Utility . | . . . . . Weapon . | . . . . . Parts Attached 23 | 6 11 5 . 1 Power 3 | 1 1 1 . . Engine 3 | 1 1 1 . . Core . | . . . . . Reactor . | . . . . . Propulsion 6 | 2 3 1 . . Treads . | . . . . . Leg 4 | . 3 1 . . Wheel 2 | 2 . . . . Hover . | . . . . . Flight . | . . . . . Utility 4 | 1 3 . . . Device 1 | . 1 . . . Storage 3 | 1 2 . . . Processor . | . . . . . Hackware . | . . . . . Protection . | . . . . . Artifact . | . . . . . Weapon 10 | 2 4 3 . 1 Energy Gun 5 | 1 2 1 . 1 Energy Cannon . | . . . . . Ballistic Gun 2 | 1 1 . . . Ballistic Cannon . | . . . . . Launcher 3 | . 1 2 . . Special Weapon . | . . . . . Impact Weapon . | . . . . . Slashing Weapon . | . . . . . Piercing Weapon . | . . . . . Special Melee Weapon . | . . . . . Unidentified Prototypes 1 | . 1 . . . Parts Lost 5 | . 1 1 . 3 Power 1 | . . 1 . . Propulsion 3 | . 1 . . 2 Utility 1 | . . . . 1 Weapon . | . . . . . Highest Loss Streak 3 | . 1 1 . 3 To Critical Strikes . | . . . . . Average Slot Usage (%) 97 | . 92 99 100 100 Engine 13 | . 14 13 14 14 Leg 23 | . 14 28 28 28 Wheel 4 | . 12 . . . Device 11 | . 7 14 14 14 Storage 14 | . 14 14 14 14 Energy Gun 18 | . 12 24 14 25 Ballistic Gun 5 | . 15 . . . Launcher 4 | . . 3 14 2 Naked Turns . | . . . . . Heaviest Build 32 | 13 32 30 30 30 Greatest Support 20 | 20 20 20 20 20 Greatest Overweight (x) 4 | . 4 1 1 2 Average Overweight (x) . | . . 1 1 1 Largest Inventory Capacity 15 | 8 15 15 15 15 Average Capacity 12 | 7 9 15 15 15 Most Carried 15 | 7 10 13 15 15 Average Carried 10 | 4 8 11 13 15 Final Capacity 15 | 8 15 15 15 15 Final Carried 15 | 7 10 13 15 15 Class Distribution -------------------- 100% | Mutant Dominant Class ---------------- Mutant | -10/Materials Mutant | -10/Mines Mutant | -10/Exiles Mutant | -9/Mines Resources | -11 -10 -10 -10 -9 ----------- Run | Scr Mat Min Exi Min Matter Collected 502 | 260 81 151 . 10 Remotely . | . . . . . Salvage Created 644 | 65 448 131 . . Parts 32 | 1 24 7 . . Haulers Intercepted 2 | . 2 . . . Recyclers Shooed . | . . . . . Parts Field Recycled . | . . . . . Retrieved Matter . | . . . . . Parts Self-Destructed . | . . . . . Prevented . | . . . . . Kills | -11 -10 -10 -10 -9 ------- Run | Scr Mat Min Exi Min Combat Hostiles Destroyed 17 | . 11 6 . . Guns 13 | . 11 2 . . AOE 4 | . . 4 . . Classes Destroyed 6 | 1 4 1 . . Builder 1 | . . 1 . . Hauler 2 | . 2 . . . Recycler 2 | 1 . 1 . . Watcher 1 | . 1 . . . Swarmer 12 | . 6 6 . . Grunt 5 | . 5 . . . Best Kill Streak 7 | 1 4 7 . . Combat Bots Only 6 | . 4 6 . . Max Kills in Single Turn 2 | 1 1 2 . . Gunslinging . | . . . . . Exploded 2 | . . 2 . . Melee . | . . . . . Uniques/NPCs Destroyed . | . . . . . Combat | -11 -10 -10 -10 -9 -------- Run | Scr Mat Min Exi Min Damage Taken 916 | . 340 120 . 456 Core 282 | . 86 18 . 178 Absorbed by Shields . | . . . . . Core Remaining (%) 100 | 100 . . . . Volleys Fired 72 | 5 58 9 . . Largest 2 | 1 2 2 . . Hottest 112 | 50 112 112 . . Shots Fired 137 | 5 114 18 . . Gun 134 | 5 114 15 . . Cannon . | . . . . . Launcher 3 | . . 3 . . Special . | . . . . . Kinetic 56 | . 56 . . . Thermal 78 | 5 58 15 . . Explosive 3 | . . 3 . . Electromagnetic . | . . . . . Robot Hit Streak 7 | 5 7 2 . . Robot Miss Streak 4 | . 4 2 . . Penetration Max . | . . . . . Secondary Targets 2 | . 1 1 . . Max Gunslinging Chain 1 | . 1 1 . . Shots Hit Robots 71 | 5 61 5 . . Core Hits 33 | 2 23 8 . . Critical Kills 1 | . 1 . . . Critical Parts Destroyed 1 | . 1 . . . Critical Strikes 5 | . 5 . . . Burn 3 | . 3 . . . Destroy 2 | . 2 . . . Melee Attacks . | . . . . . Impact . | . . . . . Slashing . | . . . . . Piercing . | . . . . . Sneak Attacks . | . . . . . Combat Hostiles . | . . . . . Follow-up Attacks . | . . . . . Damage Inflicted 1128 | 64 689 375 . . Guns 837 | 64 689 84 . . Cannons . | . . . . . Explosions 291 | . . 291 . . Melee . | . . . . . Ramming . | . . . . . Kinetic 223 | . 223 . . . Thermal 614 | 64 466 84 . . Explosive 291 | . . 291 . . Electromagnetic . | . . . . . Impact . | . . . . . Slashing . | . . . . . Piercing . | . . . . . Highest Corruption . | . . . . . Average Corruption . | . . . . . Corruption Purged . | . . . . . Corruption Blocked . | . . . . . Overload Shots . | . . . . . Overflow Damage 27 | . . 27 . . Projectiles . | . . . . . Explosions 27 | . . 27 . . Melee . | . . . . . Knockbacks . | . . . . . Impact . | . . . . . Kinetic . | . . . . . Secondary . | . . . . . Self-Inflicted Damage 12 | . . 12 . . Shots 1 | . . 1 . . Rammed . | . . . . . Targets Rammed 1 | . . 1 . . Kicked 1 | . . 1 . . Crushed . | . . . . . Highest Temperature 146 | 60 146 42 . . Average Temperature 42 | 24 46 15 . . Received Heat Transfer 102 | . 96 6 . . Siege Activations . | . . . . . Robots Corrupted . | . . . . . Combat Hostiles . | . . . . . Parts Fried . | . . . . . Impact Corruptions . | . . . . . Robots Melted . | . . . . . Combat Hostiles . | . . . . . Parts Melted 3 | . 3 . . . Heat Transferred 1887 | 185 1517 185 . . Parts Sabotaged . | . . . . . Parts Stolen . | . . . . . Parts Stripped . | . . . . . Power Chain Reactions . | . . . . . Missiles Intercepted . | . . . . . Alert | -11 -10 -10 -10 -9 ------- Run | Scr Mat Min Exi Min Peak Influence 305 | 5 305 249 . . Initial 52 | . 3 52 . . Average 140 | 2 143 159 . . Maximum Alert Level 1 | . 1 1 . . Low Security (%) 66 | 100 76 51 . 100 Level 1 33 | . 23 48 . . Level 2 . | . . . . . Level 3 . | . . . . . Level 4 . | . . . . . Level 5 . | . . . . . High Security . | . . . . . Max Security . | . . . . . Squads Dispatched 1 | . 1 . . . Investigation . | . . . . . Extermination . | . . . . . Reinforcement 1 | . 1 . . . Assault . | . . . . . Garrison . | . . . . . Intercept . | . . . . . Searches Triggered . | . . . . . Construction Impeded . | . . . . . Haulers Reinforced . | . . . . . Active Scanning Responses . | . . . . . Cargo Convoy Interrupts . | . . . . . Stealth | -11 -10 -10 -10 -9 --------- Run | Scr Mat Min Exi Min Distress Signals 5 | . 3 2 . . Communications Jammed . | . . . . . Distress Signals . | . . . . . Times Spotted 28 | . 18 8 . 2 Peak Tracking Total 6 | . 4 6 . 2 Tactical Retreats 1 | . 1 . . . Traps | -11 -10 -10 -10 -9 ------- Run | Scr Mat Min Exi Min Traps Triggered . | . . . . . Indirectly . | . . . . . Trap Hack Attempts . | . . . . . Triggered . | . . . . . Disarmed . | . . . . . Reprogrammed . | . . . . . Reused . | . . . . . Traps Extracted . | . . . . . Installed . | . . . . . Triggered . | . . . . . Machines | -11 -10 -10 -10 -9 ---------- Run | Scr Mat Min Exi Min Machines Disabled 1 | . 1 . . . Max in Single Turn 1 | . 1 . . . Machines Sabotaged . | . . . . . Garrisons Compromised . | . . . . . Overloaded Fab Kills . | . . . . . Hacking | -11 -10 -10 -10 -9 --------- Run | Scr Mat Min Exi Min Machines Accessed 5 | . 3 . 2 . Terminals 2 | . 2 . . . Fabricators . | . . . . . Repair Stations 1 | . 1 . . . Recycling Units . | . . . . . Scanalyzers . | . . . . . Garrison Access . | . . . . . Total Hacks 12 | . 7 . 5 . Successful 10 | . 5 . 5 . Failed 2 | . 2 . . . Catastrophic 1 | . 1 . . . Database Lockouts . | . . . . . Manual 5 | . 4 . 1 . Terminals 5 | . 5 . . . Fabricators . | . . . . . Repair Stations 2 | . 2 . . . Recycling Units . | . . . . . Scanalyzers . | . . . . . Garrison Access . | . . . . . Terminal Hacks 7 | . 2 . 5 . Record 4 | . . . 4 . Locate Traps 1 | . 1 . . . Zone Layout 1 | . 1 . . . EX-Prototype ID Bank 1 | . . . 1 . Fabricator Hacks . | . . . . . Repair Station Hacks 1 | . 1 . . . Refit 1 | . 1 . . . Recycling Unit Hacks . | . . . . . Scanalyzer . | . . . . . Garrison Access Hacks . | . . . . . Unauthorized Hacks 2 | . 2 . . . Terminals 2 | . 2 . . . Botnet 1 | . 1 . . . Operators 1 | . 1 . . . Fabricators . | . . . . . Repair Stations . | . . . . . Recycling Units . | . . . . . Scanalyzers . | . . . . . Garrison Access . | . . . . . Data Cores Recovered . | . . . . . Used . | . . . . . Hacking Detections 2 | . 2 . . . Full Trace Events . | . . . . . Feedback Events . | . . . . . Feedback Blocked . | . . . . . Robot Schematics Acquired . | . . . . . Robots Built . | . . . . . Authchips . | . . . . . Time . | . . . . . Total Robot Build Rating . | . . . . . Part Schematics Acquired . | . . . . . Parts Built . | . . . . . Authchips . | . . . . . Time . | . . . . . Total Part Build Rating . | . . . . . Parts Repaired . | . . . . . Time . | . . . . . Parts Recycled . | . . . . . Recycled Matter . | . . . . . Retrieved Matter . | . . . . . Retrieved Components . | . . . . . Parts Scanalyzed . | . . . . . Part Schematics Acquired . | . . . . . Parts Damaged . | . . . . . Bothacking | -11 -10 -10 -10 -9 ------------ Run | Scr Mat Min Exi Min Used RIF Installer . | . . . . . Robots Hacked . | . . . . . Non-combat . | . . . . . Combat . | . . . . . Robot Hacks Applied . | . . . . . Relay Couplers Released . | . . . . . Fabnet Peak Effective % . | . . . . . Robots Rewired . | . . . . . Allies Hacked . | . . . . . Hacks Repelled . | . . . . . Allies | -11 -10 -10 -10 -9 -------- Run | Scr Mat Min Exi Min Total Allies 6 | . . 6 . . Largest Group 6 | . . 6 5 3 Highest-Rated Group 117 | . . 117 102 40 Highest-Rated Ally 31 | . . 31 31 16 Total Orders . | . . . . . Ally Attacks 7 | . . 3 . 4 Total Damage 134 | . . 64 . 70 Kills 2 | . . 2 . . Allies Corrupted . | . . . . . Allies Melted . | . . . . . Intel | -11 -10 -10 -10 -9 ------- Run | Scr Mat Min Exi Min Robot Analysis Total . | . . . . . Derelict Logs Recovered 1 | . . 1 . . Drone Launches . | . . . . . Drone Recoveries . | . . . . . Exploration | -11 -10 -10 -10 -9 ------------- Run | Scr Mat Min Exi Min Turns Passed 2065 | 72 715 799 423 56 Spaces Moved 1080 | 61 421 349 222 27 Core 21 | 10 11 . . . Treads . | . . . . . Legs 820 | . 222 349 222 27 Wheels 238 | 51 187 . . . Hover 1 | . 1 . . . Flight . | . . . . . Fastest Speed 50 | 50 80 190 190 190 Average Speed 154 | 75 116 190 190 192 Slowest Speed 260 | 80 250 190 190 260 Overloaded Moves . | . . . . . Propulsion Burnouts . | . . . . . Robots Hopped . | . . . . . Cave-ins Triggered . | . . . . . Exploration Rate (%) 46 | 5 83 72 59 14 Regions Visited 4 Branch Regions 3 Pre-discovered Areas 1 | . . . 1 . Known Exits Taken . | . . . . . Unknown Exits Taken 4 | 1 1 1 1 . Scrap Searched 1 | . . 1 . . Spaces Dug 19 | . . 19 . . Terrain Destroyed 19 | . . 19 . . Melee . | . . . . . Projectile . | . . . . . AOE 19 | . . 19 . . Terrain Rammed . | . . . . . Walls Destroyed . | . . . . . Machines Disabled . | . . . . . Actions | -11 -10 -10 -10 -9 --------- Run | Scr Mat Min Exi Min Total 1350 | 78 554 464 224 30 Wait 128 | . 27 99 . 2 Move 1076 | 60 420 348 221 27 Hop . | . . . . . Pick Up 28 | 7 17 2 2 . Fast Attach 12 | 6 5 1 . . Attach 2 | . 2 . . . Detach . | . . . . . Swap 9 | . 4 4 . 1 Drop 22 | . 21 . 1 . Fire 72 | 5 58 9 . . Melee . | . . . . . Ram . | . . . . . Kick 1 | . . 1 . . Crush . | . . . . . Escape Stasis . | . . . . . Rewire . | . . . . . Trap . | . . . . . Miscellaneous . | . . . . . Route ------- -11/Scrapyard -10/Materials (discovered 4 exits: *Mat x3 / [*Min]) -10/Mines (discovered 2 exits: Mat / *Exi) -10/Exiles -9/Mines (discovered 1 exit: [*Mat]) History --------- Turn | Location | Event 33 | -11/Scrapyard | Discovered new exit (range 15) 73 | -11/Scrapyard | Entered Materials 168 | -10/Materials | Discovered new exit (range 16) 298 | -10/Materials | Discovered new exit (range 6) 304 | -10/Materials | Build established: Mutant 530 | -10/Materials | Discovered new exit (range 9) 615 | -10/Materials | Discovered new exit (range 16) 788 | -10/Materials | Entered Mines 972 | -10/Mines | A weapon hastily lodged in a ceiling crevice suddenly fell to the ground 1149 | -10/Mines | Excavation squad dispatched 1149 | -10/Mines | A large section of the Mines collapsed 1250 | -10/Mines | Identified exit to Materials 1338 | -10/Mines | Assisted by bots powering up and referring to "LRC-V3" 1399 | -10/Mines | Excavation squad dispatched 1434 | -10/Mines | Received a Mining Laser from a helpful Derelict 1579 | -10/Mines | Deemed a non-threat by the Exiles lab entrance 1579 | -10/Mines | Discovered new exit (range 5) 1587 | -10/Mines | Entered Exiles 1587 | -10/Exiles | Accompanied by 5 allies 1617 | -10/Exiles | Led the pair of lost Derelicts to a safe place 1631 | -10/Exiles | Met 8R-AWN 1665 | -10/Exiles | Met EX-HEX 1719 | -10/Exiles | Met EX-BIN 1739 | -10/Exiles | Aligned with FarCom system 1741 | -10/Exiles | Given EX-Vault access code 1785 | -10/Exiles | Opened EX-Vault 1802 | -10/Exiles | Found YOLO Cannon 1839 | -10/Exiles | Warned to stay clear of 0b10 Research branches 1863 | -10/Exiles | Exiles lab attacked by MAIN.C 1902 | -10/Exiles | Learned location of Zion (-6) 1993 | -10/Exiles | Discovered new exit (range 10) 2010 | -10/Exiles | Left Exiles lab with YOLO Cannon 2010 | -10/Exiles | Entered Mines 2010 | -9/Mines | Accompanied by 3 allies 2011 | -9/Mines | Assembled infested the area 2042 | -9/Mines | Met a Derelict bent on vengeance 2060 | -9/Mines | Core integrity fell below 50% 2061 | -9/Mines | Discovered new exit (range 10) 2066 | -9/Mines | Core integrity fell below 20% 2066 | -9/Mines | Destroyed by D-53 Grenadier with Mini Grenade Launcher Last Messages --------------- response squad. 02011_ GM-J5T: "That was close. Too bad in all the rush we got split up from the others." 02018_ Trooper 1a destroyed. 02018_ Mercenary 1a destroyed. 02018_ GM-J5T destroyed. 02056_ The unstable cave ceiling collapses. 02057_ U-05 Engineer lays Concrete. 02060_ Acquired 10 matter. 02061_ U-05 Engineer lays Concrete. 02061_ EXIT=FOUND 02062_ U-05 Engineer lays Concrete. 02062_ Aluminum Leg destroyed. 02063_ The unstable cave ceiling collapses. 02063_ U-05 Engineer lays Concrete. 02064_ K-01 Serf collects debris. 02064_ Aluminum Leg destroyed. 02064_ Heat Sink destroyed. 02065_ The unstable cave ceiling collapses. 02065_ U-05 Engineer lays Concrete. Map ----- +----------------------------------------------------+ | ????????????????????????????????????? | | ????????????????????????????????????? | | ????????????????????????????????????? | | ????????????????????????????????????? | | ????????????????????????????????????? | | ????????????????????????????????????? | | ????????????????????????????????????? | | ????????????????????????????????????? | | ????????????????????????????????????? | | ????????????????????????????????????? | | ????????????????????????????????????? | | ????????????????????????????????????? | | ????????????????????????????????#???? | | ??????????????????????????????? ##??? | | ????????????????????????????? ##?? | | ????????????????????????????? #?? | | ????????????????????????????? #?? | | ???????????????????????????? #?? | | ???????????????????????????? #?? | | ???????????????????????????? k #?? | | ??????????????????????###### k ??? | | ?????????????????????## # # #?? | | ?????????????????????# #??? | | ?????????????????????# # #???? | | ????????????????????## ##????? | | ????????????????????# @ #????? | | ????????????????????## ##????? | | ????????????????????# #?????? | | ????????????????????# #?????? | | ????????????????????# ##?????? | | ????????????????????# #?????? | | ????????????????????## # #?????? | | ??????????????????? d ##?????? | | ??????????????????#### #####??? | | ?????????????????????## d### #??? | | ???????????????????### ###### #??? | | ?????????????????### # #???## #??? | | ?????????????????# # #??## ##?? | | ?????????????????# #?## #?? | | ??????????????????# u ### #?? | | ??????????????????# ##?? | | ?????????????????# ##??? | | ?????????????????# ## ##???? | | ????????????????# # #?#####????? | | ????????????????# ##????????????? | | ????????????????# ??????????????? | | ????????????????## #??????????????? | | ?????????????????# ##??????????????? | | ?????????????????# ????????????????? | | ?????????????????# ????????????????? | +----------------------------------------------------+ Best States ------------- Heat Dissipation 35 Energy Generation 10 Energy Capacity 250 Matter Stores 300 Matter Capacity 300 Sight Range 16 Terrain Scan Density 10 Evasion (%) 55 Item Schematics ----------------- None Robot Schematics ------------------ None Fabricated ------------ Nothing Alien Tech Used ----------------- None Achievements -------------- None Challenges ------------ None Game ------ Seed SignalBiomechanicalRouter Manual? 0 Play Time 00:22:29 Cumulative 104.3 hours Start 2022.07.14 @ 11:33:42 End 2022.07.14 @ 11:59:30 Sessions 1 Manual Loads 0 Difficulty Rogue Special Mode None Game No. 76 Rogue 57 Adventurer 16 Explorer 3 Win Type - Total 3 Types 3/0/0/0/0/0/0/0/0 Lore% 48 Gallery% 53 Achievement% 43 Wizard Run 0 Options --------- ASCII 1 Keyboard 1 Movement Vi Keybinds 0 Fullscreen 1 Font 28/Terminus Map View 67x55 Tactical HUD 1 Map Filters NONE Filters NONE Steam 1 RUN: d3efa44a-6fb1-467b-832b-cb9f5bd16d3c